[Event "Dutch Open 2022"]
[Site "Dieren"]
[Date "2022.07.26"]
[Round "1.1"]
[White "Omelja, Artem"]
[Black "Albers, Sasa"]
[Result "1-0"]
[ECO "A13"]
[WhiteElo "2478"]
[BlackElo "2203"]
[Annotator "TA"]
[PlyCount "131"]
[EventDate "2022.07.14"]
[EventType "swiss"]
[EventCountry "NED"]
[SourceTitle "playchess.com"]
[Source "ChessBase"]
[SourceQuality "1"]
[TimeControl "40/5400+30:1800+30"]

{[%evp 11,131,20,6,10,6,-6,10,16,25,23,32,31,45,47,47,37,50,38,16,22,33,30,29,30,33,28,45,0,8,0,1,0,0,0,0,0,62,56,61,61,90,86,91,57,57,0,0,0,0,0,22,0,43,50,50,59,39,51,54,42,93,95,114,96,136,120,120,81,110,124,185,185,185,175,190,185,185,169,185,185,191,192,225,171,181,137,137,137,137,137,185,190,266,229,292,249,597,404,460,296,971,742,12350,12837,9872,10479,6634,5547,6406,6241,29971,29972,29973,29972,29972,29969,29975,29976,29975,29976,29960,8367]} 1. Nf3 {[%emt 1:31:00]} Nf6 {[%emt 0:00:03]} 2. c4 {[%emt 0:00:10]} e6 {[%emt 0:00:21]} 3. b3 {[%emt 0:00:13]} d5 {[%emt 0:01:08]} 4. e3 {[%emt 0:00:08]} Be7 {[%emt 0:02:16]} 5. Bb2 {[%emt 0:01:10]} O-O {[%emt 0:02:00]} 6. Nc3 {[%emt 0:00:07]} b6 {[%emt 0:09:35]} 7. cxd5 {[%emt 0:04:30] A13: English Opening: 1...e6.} exd5 {[%emt 0:00:49]} 8. g3 {[%emt 1:26:21]} Bb7 {[%emt 0:07:57][%cal Od5d4]} 9. Bg2 {[%emt 1:26:28] The position is equal.} c5 {[%emt 0:05:41]} 10. O-O {[%emt 0:00:22]} Na6 {[%emt 0:00:44]} 11. d4 {[%emt 1:26:23]} Nc7 {[%emt 0:00:47]} 12. dxc5 {[%emt 0:12:58]} bxc5 {[%emt 0:00:18]} 13. Rc1 {[%emt 0:00:25]} Ne6 {[%emt 0:01:28]} 14. Na4 {[%emt 0:16:26]} Rc8 {[%emt 0:06:02]} 15. Qe2 {[%emt 0:55:37] [#]} Qd6 $146 {[%emt 0:13:47]} ({Predecessor:} 15... Ne4 16. Rfd1 Qa5 17. Nd2 Nf6 18. Bc3 Qc7 19. Bb2 Rfd8 20. Nf3 Qb8 21. Ba3 Bf8 {0-1 (35) Zwakala,N (2093)-Mabusela,J (2219) Boksburg 2020}) 16. Rfd1 {[%emt 0:00:43]} Rfd8 {[%emt 0:00:23]} 17. Ne5 {[%emt 0:03:23]} Qb8 {[%emt 0:13:14]} 18. f4 {[%emt 0:02:09]} Qa8 {[%emt 0:10:25]} 19. Bf3 {[%emt 0:01:33]} d4 {[%emt 0:03:37]} 20. exd4 {[%emt 0:00:43]} (20. Bxb7 {is interesting.} Qxb7 21. Re1 dxe3 22. Qxe3 Nd4 23. Qf2) 20... cxd4 {[%emt 0:00:30]} 21. Rxc8 {[%emt 0:00:31]} (21. Bxb7 {with more complications.} Qxb7 22. Rxc8 Rxc8 23. Nf3) 21... Rxc8 {[%emt 0:00:02]} 22. Bxd4 {[%emt 0:01:38]} Nxd4 {[%emt 0:00:32]} 23. Rxd4 {[%emt 0:00:13]} Bf8 {[%emt 0:04:41]} (23... Rc1+ $11 24. Kg2 Ng4) 24. Bxb7 {[%emt 0:04:54] 0x0.001f20181b92dp-1022s more active pieces.} Qxb7 {[%emt 0:00:02]} 25. Rc4 {[%emt 0:00:14] Inhibits Rc1+.} Rxc4 {[%emt 0:01:48]} 26. Qxc4 {[%emt 0:43:07]} h5 {[%emt 0:01:28]} 27. Nc3 {[%emt 0:03:11] Pair of Knights!} Bd6 {[%emt 0:04:35]} 28. Nc6 {[%emt 0:40:05]} (28. Qc6 $14 Qe7 29. Nd5 Nxd5 30. Qa8+ (30. Qxd5 Bxe5 31. fxe5 g6 $14) 30... Kh7 31. Qxd5) 28... Qb6+ $11 {[%emt 0:01:17]} 29. Kg2 {[%emt 0:00:52]} Ng4 {[%emt 0:00:44] [#] ( -> ...Qf2+)} 30. Nd1 {[%emt 0:00:28] Inhibits Qf2+.} a6 {[%emt 0:06:31]} 31. Qc2 {[%emt 0:36:45]} Qe3 {[%emt 0:02:25][%cal Od6c5]} 32. Ne5 {[%emt 0:02:37]} Qd4 {[%emt 0:00:48]} 33. Nxg4 {[%emt 0:05:28] The board is on fire.} hxg4 $14 {[%emt 0:00:26][%mdl 4096] Endgame KQB-KQN} 34. Qc8+ {[%emt 0:01:31]} Bf8 {[%emt 0:00:00]} 35. Nf2 {[%emt 0:02:30]} Qd5+ {[%emt 0:00:08]} ({Black should try} 35... Qb2 $14) 36. Kf1 $16 {[%emt 0:00:16]} Qa5 {[%emt 0:00:50]} 37. a4 {[%emt 0:00:53]} ({Much less strong is} 37. Qxg4 Qxa2 38. Qe2 Qxb3 $14) 37... Qb6 {[%emt 0:00:30]} 38. Qc4 {[%emt 0:02:12]} ({Of course not} 38. Nxg4 $6 Qxb3 39. Ne5 Qd1+ 40. Kf2 Qd2+ 41. Kg1 Qe1+ 42. Kg2 Qe2+ 43. Kh3 Qh5+ 44. Kg2 Qe2+ 45. Kh3 Qh5+ 46. Kg2 Qe2+ $11) 38... Qg6 {[%emt 0:00:30]} 39. Qd5 {[%emt 0:02:11]} Bb4 {[%emt 0:00:31]} 40. f5 {[%emt 0:02:42]} Qh5 {[%emt 0:00:30]} (40... Qg5 $16 41. Qa8+ Kh7) 41. Qe4 $36 {[%emt 0:34:04][%csl LRb4,LRg4][%mdl 2048] White is really pushing.} Bc5 {[%emt 0:03:28]} 42. Nxg4 {[%emt 0:00:00]} Qg5 {[%emt 0:02:03]} 43. Kg2 {[%emt 0:05:41]} a5 {[%emt 0:01:39]} 44. Qf3 {[%emt 0:00:00]} Bd4 {[%emt 0:03:19]} 45. h4 {[%emt 0:00:00] Qa8+ would kill now.} Qd2+ {[%emt 0:03:15]} 46. Kh3 {[%emt 0:00:00]} Qe1 {[%emt 0:00:17]} 47. Nh2 {[%emt 0:00:00]} Bf6 {[%emt 0:02:44]} 48. Nf1 {[%emt 0:00:00]} Bd4 {[%emt 0:00:23]} 49. Qd3 {[%emt 0:00:00]} Be5 {[%emt 0:00:21]} 50. Kg2 {[%emt 0:00:00]} Qb4 {[%emt 0:01:53]} (50... Kh7 $16 {is a better defense.} 51. Nh2 f6) 51. Nd2 {[%emt 0:00:00]} Qb7+ {[%emt 0:00:54]} (51... Qg4 {was called for.} 52. Qf3 Qd4) 52. Ne4 {[%emt 0:10:11]} g6 {[%emt 0:01:05]} 53. Qf3 {[%emt 0:00:00][%cal Oe4f6] Black must now prevent Nf6+!} Kg7 {[%emt 0:00:58] Prevents Nf6.} (53... Qc7 54. fxg6 fxg6) 54. fxg6 {[%emt 0:00:00]} fxg6 {[%emt 0:00:17]} 55. Ng5 {[%emt 0:00:00]} Qxf3+ {[%emt 0:01:29]} (55... Qe7 56. Qc6 Bb8) 56. Kxf3 {[%emt 0:00:00] And now g4 would win. KB-KN} Kf6 {[%emt 0:00:27]} 57. g4 {[%emt 0:00:00][%cal Bg3g4,Bg4h5][%mdl 32]} Bd4 {[%emt 0:00:37]} 58. Ke4 {[%emt 0:00:00]} Bf2 {[%emt 0:00:08]} 59. Nf3 {[%emt 0:13:41]} Ke6 {[%emt 0:00:13]} 60. h5 {[%emt 0:00:00]} gxh5 {[%emt 0:00:06]} 61. gxh5 {[%emt 0:00:00] White mates.} Bc5 {[%emt 0:00:49] [#]} 62. Ne5 $1 {[%emt 0:15:11]} Bb4 {[%emt 0:00:19]} 63. Nc4 {[%emt 0:00:00]} Kf6 {[%emt 0:00:42]} 64. Kd5 {[%emt 0:00:00]} Kg5 {[%emt 0:00:04]} 65. Kc6 {[%emt 0:00:00]} Kxh5 {[%emt 0:00:07]} 66. Kb5 {[%emt 0:00:00] Weighted Error Value: White=0.13 (very precise) /Black=0.39} (66. Kb6 $142 Be1 67. Nxa5 Kg4 68. Nc4 Kf3 69. a5 Bh4 70. a6 Kg4 71. Kb7) 1-0

[Event "Dutch Open 2022"]
[Site "Dieren"]
[Date "2022.07.26"]
[Round "1.2"]
[White "Pijkeren, Jan"]
[Black "Lahaye, Rick"]
[Result "0-1"]
[ECO "A21"]
[WhiteElo "2196"]
[BlackElo "2417"]
[Annotator "TA"]
[PlyCount "76"]
[EventDate "2022.07.14"]
[EventType "swiss"]
[EventCountry "NED"]
[SourceTitle "playchess.com"]
[Source "ChessBase"]
[SourceQuality "1"]
[TimeControl "40/5400+30:1800+30"]

{[%evp 9,76,12,71,35,39,26,22,21,21,-16,11,-56,-41,-69,-61,-95,-49,-99,-110,-143,-137,-172,-135,-191,-157,-166,-166,-166,-163,-161,-161,-161,-127,-168,-160,-195,-117,-141,-138,-120,-143,-143,-134,-138,-138,-200,-200,-295,-285,-503,-480,-514,-500,-513,-454,-460,-446,-595,-574,-798,-794,-1903,-1616,-1775,-1616,-5265,-4810,-5373,-5265]} 1. c4 {[%emt 0:00:30]} d6 {[%emt 0:02:44]} 2. Nc3 {[%emt 0:00:01]} e5 {[%emt 0:01:05]} 3. g3 {[%emt 0:00:19]} f5 {[%emt 0:01:44]} 4. Bg2 {[%emt 0:02:06]} c6 {[%emt 0:03:50]} 5. d4 {[%emt 0:13:21]} Be6 {[%emt 0:15:13] [#]} (5... Be7 $11 {remains equal.}) 6. dxe5 $146 {[%emt 0:06:36] A21: English Opening: 1...e5 2 Nc3.} ({Predecessor:} 6. d5 Bd7 7. Nf3 Nf6 8. O-O Be7 9. Ne1 O-O 10. Nc2 Qe8 11. e4 Qg6 12. exf5 Bxf5 {0-1 (50) Saint,A-Yu,S (1933) Canberra 2010}) 6... dxe5 {[%emt 0:00:17]} 7. Qxd8+ {[%emt 0:02:08]} Kxd8 {[%emt 0:00:30]} 8. Nf3 {[%emt 0:13:18] The position is equal.} Nd7 {[%emt 0:00:00]} 9. Bg5+ {[%emt 0:17:47]} Ke8 {[%emt 0:07:10]} 10. O-O-O {[%emt 0:18:15]} (10. Bh3 $11) 10... h6 $15 {[%emt 0:02:26]} 11. Be3 {[%emt 0:06:24]} Ngf6 {[%emt 0:07:20]} 12. h4 {[%emt 0:01:06]} Bxc4 {[%emt 0:16:26]} (12... Bb4 $17 13. h5 Ng4) 13. Bh3 {[%emt 0:01:09] [#]} ({Better is} 13. h5 $1 $15) 13... Bb4 $1 $17 {[%emt 0:01:47] aiming for ...Bxc3.} 14. Rd2 {[%emt 0:03:52]} Be6 {[%emt 0:00:41]} 15. Rhd1 {[%emt 0:00:35]} Nd5 {[%emt 0:04:59]} 16. Kc2 {[%emt 0:02:09]} (16. Rc2 $17) 16... Ke7 {[%emt 0:02:56][%cal Be8e7,Be7e6,Be6d7][%mdl 32]} 17. Rxd5 {[%emt 0:02:30]} cxd5 {[%emt 0:01:55]} ({Weaker is} 17... Bxd5 18. Nxd5+ (18. Rxd5 cxd5 19. Nxd5+ Kd6 $17) 18... cxd5 19. Rxd5 $17) 18. Nxd5+ {[%emt 0:00:12]} Bxd5 {[%emt 0:00:10]} 19. Rxd5 {[%emt 0:00:04]} Ke6 {[%emt 0:06:37]} 20. Rb5 {[%emt 0:00:20]} Rhc8+ {[%emt 0:00:55]} 21. Kd1 {[%emt 0:01:12]} Bc5 {[%emt 0:01:10]} 22. Rxb7 {[%emt 0:03:08]} Rab8 $40 {[%emt 0:01:12][%mdl 128] Black has strong attack.} ({Black should try} 22... Bxe3 $19 23. fxe3 g6) 23. Rxd7 {[%emt 0:00:53]} Kxd7 {[%emt 0:00:07]} 24. Bxf5+ {[%emt 0:00:20]} Kd6 {[%emt 0:00:05] [#] Hoping for ...Rf8.} 25. Bxc8 {[%emt 0:00:33] Bxc5+ is the strong threat.} Bxe3 {[%emt 0:00:06]} ({Inferior is} 25... Rxc8 26. Bxc5+ Rxc5 27. e4 $15) 26. fxe3 {[%emt 0:00:30]} Rxc8 {[%emt 0:00:04][%mdl 4096] Endgame KR-KN} 27. Nd2 {[%emt 0:02:49]} (27. e4 $17) 27... Kd5 $19 {[%emt 0:01:48]} 28. b3 {[%emt 0:00:05]} (28. g4 {was worth a try.}) 28... Rc6 {[%emt 0:00:10]} 29. Nc4 $2 {[%emt 0:01:01]} (29. h5 {was necessary.}) 29... Rg6 {[%emt 0:00:25] Black is clearly winning.} 30. e4+ {[%emt 0:01:32]} Kxe4 {[%emt 0:00:37]} 31. Nd2+ {[%emt 0:00:26]} Ke3 {[%emt 0:00:27] And now ...Rd6 would win.} 32. Ke1 {[%emt 0:00:12]} e4 {[%emt 0:01:48] Threatens to win with ...Kd4.} 33. Nc4+ {[%emt 0:00:30]} Kd4 {[%emt 0:00:19]} 34. e3+ {[%emt 0:00:14]} Kc3 {[%emt 0:00:12]} 35. Kf2 {[%emt 0:00:40]} Ra6 {[%emt 0:00:50]} 36. a4 {[%emt 0:00:37]} Re6 {[%emt 0:00:53]} 37. Na5 {[%emt 0:00:26]} Kb4 {[%emt 0:00:18]} 38. Nb7 {[%emt 0:00:14]} Rb6 {[%emt 0:00:07] Weighted Error Value: White=0.86/Black=0.17 (very precise)} 0-1

[Event "Dutch Open 2022"]
[Site "Dieren"]
[Date "2022.07.26"]
[Round "1.4"]
[White "Ochs, Daniel Elias"]
[Black "Burdalev, Kirill"]
[Result "1/2-1/2"]
[ECO "D23"]
[WhiteElo "2156"]
[BlackElo "2381"]
[Annotator "TA"]
[PlyCount "61"]
[EventDate "2022.07.14"]
[EventType "swiss"]
[EventCountry "NED"]
[SourceTitle "playchess.com"]
[Source "ChessBase"]
[SourceQuality "1"]
[TimeControl "40/5400+30:1800+30"]

{[%evp 17,61,0,16,4,12,-9,-9,-9,-7,-10,0,-10,41,43,66,46,62,39,56,22,96,104,104,110,86,54,69,47,51,25,29,23,29,26,51,45,72,69,68,21,31,22,26,0,31,0]} 1. d4 {[%emt 0:00:02]} d5 {[%emt 0:00:15]} 2. c4 {[%emt 0:00:07]} c6 {[%emt 0:00:05]} 3. Nf3 {[%emt 0:00:05]} Nf6 {[%emt 0:00:05]} 4. Qb3 {[%emt 0:00:05]} dxc4 {[%emt 0:00:32]} 5. Qxc4 {[%emt 0:00:09]} Bf5 {[%emt 0:00:04]} 6. g3 {[%emt 0:00:30]} e6 {[%emt 0:00:43]} 7. Bg2 {[%emt 0:00:10]} Be7 {[%emt 0:00:24]} 8. O-O {[%emt 0:00:15]} O-O {[%emt 0:00:26]} 9. Nc3 {[%emt 0:00:17]} Nbd7 {[%emt 0:00:18]} 10. Re1 {[%emt 0:00:52] D23: Queen's Gambit Accepted: 3 Nf3 Nf6 sidelines.} Bg6 {[%emt 0:00:06] is the legacy move (10...Ne4).} (10... Ne4 {looks sharper.} 11. Qb3 Qb6 12. Nh4 Bxh4 13. gxh4 Nxc3 14. bxc3 e5) 11. Qb3 {[%emt 0:24:51]} Qb6 {[%emt 0:21:55]} 12. e4 {[%emt 0:15:08] The position is equal.} Qxb3 {[%emt 0:07:14]} 13. axb3 {[%emt 0:00:16]} Bb4 {[%emt 0:00:02]} 14. Nh4 {[%emt 0:03:18] [#]} Bh5 $146 {[%emt 0:00:04]} (14... e5 $11 15. Nxg6 fxg6) ({Predecessor:} 14... e5 15. Nxg6 fxg6 16. dxe5 Nxe5 17. h3 Nd3 18. Re3 Nxc1 19. Rxc1 Nd7 20. e5 Rfe8 {½-½ (27) Bacrot,E (2714)-Hovhannisyan,R (2498) Rijeka 2010}) 15. h3 $14 {[%emt 0:03:32]} Ne8 {[%emt 0:16:22]} 16. g4 {[%emt 0:05:28]} Bg6 {[%emt 0:02:27]} 17. Be3 {[%emt 0:04:02][%cal Bc1e3,Be3f2,Bf2h4][%mdl 32] White is more active.} Nc7 {[%emt 0:04:13]} 18. f4 {[%emt 0:01:59]} Be7 {[%emt 0:08:57] [#]} (18... f5 $11 {keeps the balance.}) 19. Bf2 $1 $16 {[%emt 0:00:44] And now f5 would win.} Bxh4 {[%emt 0:01:35]} 20. Bxh4 {[%emt 0:01:34] Threatens to win with f5.} f6 {[%emt 0:00:01]} 21. Bf2 {[%emt 0:02:37]} Bf7 {[%emt 0:03:17]} 22. Ra5 {[%emt 0:07:30]} Rfe8 {[%emt 0:12:43]} 23. Rea1 {[%emt 0:05:01]} a6 {[%emt 0:00:17]} 24. Rc1 {[%emt 0:02:27]} Rac8 {[%emt 0:01:20]} 25. Raa1 {[%emt 0:01:18]} e5 {[%emt 0:04:10]} 26. fxe5 {[%emt 0:00:35]} Bxb3 {[%emt 0:03:25]} 27. exf6 {[%emt 0:01:18]} Nxf6 {[%emt 0:00:03]} 28. e5 {[%emt 0:05:25]} (28. g5 $14 Nd7 29. h4) 28... Nd7 {[%emt 0:00:11]} 29. Ne4 {[%emt 0:01:02] aiming for Nd6.} Nb5 {[%emt 0:00:13]} 30. Nc3 {[%emt 0:02:01]} Nc7 {[%emt 0:04:38]} 31. Ne4 {[%emt 0:00:08] Weighted Error Value: White=0.12 (very precise) /Black=0.15 (very precise)} 1/2-1/2

[Event "Dutch Open 2022"]
[Site "Dieren"]
[Date "2022.07.26"]
[Round "1.5"]
[White "Gilmanov, Mansur"]
[Black "De Winter, Arthur"]
[Result "1/2-1/2"]
[ECO "A47"]
[WhiteElo "2377"]
[BlackElo "2150"]
[Annotator "TA"]
[PlyCount "37"]
[EventDate "2022.07.14"]
[EventType "swiss"]
[EventCountry "NED"]
[SourceTitle "playchess.com"]
[Source "ChessBase"]
[SourceQuality "1"]
[TimeControl "40/5400+30:1800+30"]

{[%evp 18,37,0,-5,0,0,28,27,45,29,66,68,68,39,52,42,35,0,0,0,33,27]} 1. d4 {[%emt 0:00:01]} Nf6 {[%emt 0:00:04]} 2. Bg5 {[%emt 0:00:04]} e6 {[%emt 0:01:37]} 3. e3 {[%emt 0:00:52]} c5 {[%emt 0:03:57]} 4. c3 {[%emt 0:01:14]} b6 {[%emt 0:01:23]} 5. Nf3 {[%emt 0:01:14]} Bb7 {[%emt 0:00:24]} 6. Nbd2 {[%emt 0:02:41]} Be7 {[%emt 0:01:31]} 7. Bd3 {[%emt 0:00:33]} h6 {[%emt 0:01:26]} 8. Bxf6 {[%emt 0:08:24]} Bxf6 {[%emt 0:00:35]} 9. Qe2 {[%emt 0:00:28]} O-O {[%emt 0:02:09]} 10. O-O $1 {[%emt 0:03:28]} d5 {[%emt 0:03:42] A47: 1 d4 Nf6 2 Nf3 b6: Torre, London and Colle Systems.} 11. Ne5 {[%emt 0:02:45]} Bxe5 {[%emt 0:26:12]} 12. dxe5 {[%emt 0:00:11] [#]} Nc6 $146 {[%emt 0:00:03] White has an edge.} ({Predecessor:} 12... Nd7 13. f4 f6 14. exf6 Nxf6 15. e4 dxe4 16. Nxe4 Nxe4 17. Bxe4 Bxe4 18. Qxe4 Qd5 19. Rfe1 Rad8 {½-½ (20) Staller,P (2275)-Fischer,G (2149) Bad Blankenburg 2006}) 13. f4 {[%emt 0:00:39]} f6 {[%emt 0:00:13]} 14. exf6 {[%emt 0:12:49] White is more active.} Qxf6 {[%emt 0:00:49]} 15. e4 {[%emt 0:06:40]} c4 {[%emt 0:05:20]} 16. Bc2 {[%emt 0:07:26]} b5 {[%emt 0:07:59]} 17. Qh5 {[%emt 0:24:07]} Qf7 {[%emt 0:11:03]} 18. Qxf7+ {[%emt 0:02:47]} Kxf7 {[%emt 0:03:00]} 19. exd5 {[%emt 0:03:09] Weighted Error Value: White=0.07 (flawless) /Black=0.15 (very precise)} 1/2-1/2

[Event "Dutch Open 2022"]
[Site "Dieren"]
[Date "2022.07.26"]
[Round "1.6"]
[White "Vogel, Jaap"]
[Black "Maatman, Nick"]
[Result "0-1"]
[ECO "D11"]
[WhiteElo "2147"]
[BlackElo "2368"]
[Annotator "TA"]
[PlyCount "54"]
[EventDate "2022.07.14"]
[EventType "swiss"]
[EventCountry "NED"]
[SourceTitle "playchess.com"]
[Source "ChessBase"]
[SourceQuality "1"]
[TimeControl "40/5400+30:1800+30"]

{[%evp 18,54,0,0,0,0,32,26,29,-8,52,39,43,43,40,-5,48,41,25,-72,-18,-33,0,0,0,-2,12,0,2,6,0,-10,0,0,114,-54,-54,-78,-92]} 1. d4 {[%emt 0:00:01]} Nf6 {[%emt 0:00:04]} 2. Nf3 {[%emt 0:00:11]} c6 {[%emt 0:01:15]} 3. g3 {[%emt 0:01:04]} d5 {[%emt 0:00:40]} 4. Bg2 {[%emt 0:00:09]} Bg4 {[%emt 0:03:07]} 5. O-O {[%emt 0:02:47]} e6 {[%emt 0:00:59]} 6. b3 {[%emt 0:02:39]} Nbd7 {[%emt 0:00:37]} 7. Bb2 {[%emt 0:00:08]} a5 {[%emt 0:05:50]} 8. a3 {[%emt 0:00:53]} Be7 {[%emt 0:10:47]} 9. Nbd2 {[%emt 0:02:17]} O-O {[%emt 0:00:39]} 10. c4 {[%emt 0:04:42]} Qb6 {[%emt 0:04:58] has lost popularity (10...b5). D11: Slav Defence: 3 Nf3 sidelines and 3...Nf6 4 e3 Bg4.} 11. h3 {[%emt 0:20:59]} Bxf3 {[%emt 0:01:52] [#]} 12. Bxf3 $146 {[%emt 0:03:13]} ({Predecessor:} 12. exf3 dxc4 13. Nxc4 Qa6 14. f4 a4 15. Re1 Qb5 16. Nd2 axb3 17. Bf1 Qa5 18. Nc4 {½-½ (45) Berzinsh,R (2472)-Sermek,D (2590) Bled 2002}) 12... c5 {[%emt 0:00:28] White has an edge.} 13. e4 {[%emt 0:12:18]} cxd4 {[%emt 0:01:33]} (13... dxe4 $11 14. Nxe4 Rad8) 14. cxd5 $14 {[%emt 0:08:21]} Rac8 {[%emt 0:04:13]} 15. Rb1 {[%emt 0:03:00]} e5 {[%emt 0:04:25]} 16. Nc4 {[%emt 0:04:05]} Qa7 {[%emt 0:02:51]} ({Black should play} 16... Qa6 $1 $11) 17. d6 {[%emt 0:06:40]} Bd8 {[%emt 0:00:03]} 18. Kg2 {[%emt 0:01:14] [#]} (18. Bg2 $11 Rxc4 19. bxc4) 18... Qb8 {[%emt 0:06:43]} (18... a4 $1 $17) 19. a4 $11 {[%emt 0:01:32]} b5 {[%emt 0:08:40]} (19... Bb6 $5) 20. axb5 {[%emt 0:07:53]} Qxb5 {[%emt 0:00:06][%cal Oa5a4]} 21. Ba3 {[%emt 0:00:43]} a4 {[%emt 0:15:45]} 22. Nd2 {[%emt 0:00:56]} Qa6 {[%emt 0:17:42]} 23. bxa4 {[%emt 0:01:53]} Ba5 {[%emt 0:00:35]} 24. Nb3 {[%emt 0:07:05]} Bc3 {[%emt 0:00:01]} 25. Nc1 {[%emt 0:00:09]} Rc4 {[%emt 0:03:24]} (25... Ra8 $11) 26. Nd3 $2 {[%emt 0:03:03] [#]} ({Only move:} 26. Be2 $16) 26... Rxa4 $15 {[%emt 0:00:16]} 27. Bc1 {[%emt 0:03:29]} Ra5 {[%emt 0:00:33] Weighted Error Value: White=0.32/Black=0.31} 0-1

[Event "Dutch Open 2022"]
[Site "Dieren"]
[Date "2022.07.26"]
[Round "1.7"]
[White "Ypma, Peter"]
[Black "Binnendijk, Ferdinand"]
[Result "1/2-1/2"]
[ECO "B15"]
[WhiteElo "2346"]
[BlackElo "2147"]
[Annotator "TA"]
[PlyCount "52"]
[EventDate "2022.07.14"]
[EventType "swiss"]
[EventCountry "NED"]
[SourceTitle "playchess.com"]
[Source "ChessBase"]
[SourceQuality "1"]
[TimeControl "40/5400+30:1800+30"]

{[%evp 11,52,28,60,27,35,13,32,20,18,23,29,6,18,22,28,26,33,22,22,0,0,0,-7,-15,-10,-15,-2,-15,-15,-53,-56,-64,-56,-54,-37,-47,-39,-40,-26,-22,-5,-5,-5]} 1. d4 {[%emt 0:00:06]} d5 {[%emt 0:00:05]} 2. Nc3 {[%emt 0:00:05]} g6 {[%emt 0:02:12]} 3. Bf4 {[%emt 0:00:34]} c6 {[%emt 0:00:47]} 4. Nf3 {[%emt 0:02:57]} Bg7 {[%emt 0:00:34]} 5. e4 {[%emt 0:01:20]} dxe4 {[%emt 0:01:12]} 6. Nxe4 {[%emt 0:00:18]} Qa5+ {[%emt 0:09:09]} 7. Qd2 {[%emt 0:05:30] B15: Caro-Kann: 3 Nc3: 3...g6 and 3...dxe4 4 Nxe4 Nf6 5 Nxf6+ exf6.} Qxd2+ {[%emt 0:00:17]} 8. Nexd2 {[%emt 0:00:08]} Nf6 {[%emt 0:03:11]} 9. c3 {[%emt 0:01:16] White is slightly better.} Nd5 {[%emt 0:03:50]} 10. Bg3 {[%emt 0:02:23] [#]} Bf5 $146 {[%emt 0:06:30]} ({Predecessor:} 10... Bh6 11. Bc4 Nd7 12. O-O N7b6 13. Bb3 a5 14. a4 Bg4 15. Rfe1 e6 16. Ne4 Bxf3 {1-0 (78) Dashko,A (2401)-Drozdov,I (2445) St Petersburg 2002}) 11. Be2 {[%emt 0:05:28]} Nd7 {[%emt 0:03:18][%cal Bb8d7,Bd7b6,Bb6a4,Ba4b2,Bb2d3,Bd3e1][%mdl 32]} 12. O-O {[%emt 0:00:32]} O-O {[%emt 0:01:14]} 13. Rfe1 {[%emt 0:00:46]} Rfe8 {[%emt 0:01:20]} 14. Nc4 {[%emt 0:03:33]} N7b6 {[%emt 0:09:12]} 15. Na5 {[%emt 0:02:06]} Na4 $1 {[%emt 0:00:07]} 16. Nxb7 {[%emt 0:10:41]} Nxb2 {[%emt 0:00:14]} 17. Ne5 {[%emt 0:00:21]} Bxe5 {[%emt 0:14:16]} 18. Bxe5 {[%emt 0:01:25]} f6 {[%emt 0:00:07]} 19. Bg3 {[%emt 0:00:37]} Nxc3 {[%emt 0:00:36]} 20. Bf3 {[%emt 0:02:47]} Nd3 {[%emt 0:09:08] Pair of Knights!} 21. Bxc6 {[%emt 0:05:48]} Nxe1 {[%emt 0:03:56]} 22. Rxe1 {[%emt 0:00:09]} Rec8 {[%emt 0:10:17]} 23. Na5 {[%emt 0:00:25] [#]} Kf8 $1 {[%emt 0:03:22][%cal Of5e4]} 24. h3 {[%emt 0:03:12]} (24. h4 Nxa2) 24... Rxc6 {[%emt 0:06:01]} 25. Nxc6 {[%emt 0:00:07]} Be4 {[%emt 0:00:21]} 26. Re3 {[%emt 0:15:46]} Bxc6 {[%emt 0:00:52] Weighted Error Value: White=0.10 (very precise) /Black=0.07 (flawless)} 1/2-1/2